Workbook

Sheet Contenido
A2: INICIO EXCEL | J2: Tabla de Secuencias
A3: Columnas, Filas, Celdas (Concepto) | J3: Marco Polo | K3: 1 | L3: 5 | M3: Lunes | N3: febrero | O3: ZS14018798 | P3: Capitulo 1
A4: Columnas y Filas (Ancho & Alto ) | J4: Marco Polo | K4: 1 | L4: 10 | M4: Martes | N4: marzo | O4: ZS14018803 | P4: Capitulo 2
A5: Columnas y Filas (Insertar & Borrar) | J5: Marco Polo | K5: 1 | L5: 15 | M5: Miércoles | N5: abril | O5: ZS14018808 | P5: Capitulo 3
A6: Modo de Vistas (Normal, Diseño de Página) | J6: Marco Polo | K6: 1 | L6: 20 | M6: Jueves | N6: mayo | O6: ZS14018813 | P6: Capitulo 4
A7: Celdas (Combinar) | J7: Marco Polo | K7: 1 | L7: 25 | M7: Viernes | N7: junio | O7: ZS14018818 | P7: Capitulo 5
A8: Libro, Nombre de Hojas, Color, add & del | J8: Marco Polo | K8: 1 | L8: 30 | M8: Sábado | N8: julio | O8: ZS14018823 | P8: Capitulo 6
A9: Encabezados & Pie de Página | J9: Marco Polo | K9: 1 | L9: 35 | M9: Domingo | N9: agosto | O9: ZS14018828 | P9: Capitulo 7
A10: TIPOS | J10: Marco Polo | K10: 1 | L10: 40 | M10: Lunes | N10: septiembre | O10: ZS14018833 | P10: Capitulo 8
A11: Tipos de Punteros (Seleccionar, Mover, Palanca de llenado) | J11: Marco Polo | K11: 1 | L11: 45 | M11: Martes | N11: octubre | O11: ZS14018838 | P11: Capitulo 9
A12: Secuencias | J12: Marco Polo | K12: 1 | L12: 50 | M12: Miércoles | N12: noviembre | O12: ZS14018843 | P12: Capitulo 10
A13: Tipos de Operadores Aritméticos (+, -, *, /, ^) | J13: Marco Polo | K13: 1 | L13: 55 | M13: Jueves | N13: diciembre | O13: ZS14018848 | P13: Capitulo 11
A14: Tipos de Operadores Comparativos (>, <, >=, <=, <>) | J14: Marco Polo | K14: 1 | L14: 60 | M14: Viernes | N14: enero | O14: ZS14018853 | P14: Capitulo 12
A15: Formulas & Funciones | J15: Marco Polo | K15: 1 | L15: 65 | M15: Sábado | N15: febrero | O15: ZS14018858 | P15: Capitulo 13
A16: signo de igual (=) y rangos (:) | J16: Marco Polo | K16: 1 | L16: 70 | M16: Domingo | N16: marzo | O16: ZS14018863 | P16: Capitulo 14
A17: Metodo Manual | J17: Marco Polo | K17: 1 | L17: 75 | M17: Lunes | N17: abril | O17: ZS14018868 | P17: Capitulo 15
A18: Metodo Funcional | J18: Marco Polo | K18: 1 | L18: 80 | M18: Martes | N18: mayo | O18: ZS14018873 | P18: Capitulo 16
A19: Autosuma | J19: Marco Polo | K19: 1 | L19: 85 | M19: Miércoles | N19: junio | O19: ZS14018878 | P19: Capitulo 17
A20: FORMATOS | J20: Marco Polo | K20: 1 | L20: 90 | M20: Jueves | N20: julio | O20: ZS14018883 | P20: Capitulo 18
A21: Formato Condicional | J21: Marco Polo | K21: 1 | L21: 95 | M21: Viernes | N21: agosto | O21: ZS14018888 | P21: Capitulo 19
A22: Referencias Absolutas & Referencias Relativas | J22: Marco Polo | K22: 1 | L22: 100 | M22: Sábado | N22: septiembre | O22: ZS14018893 | P22: Capitulo 20
A23: Regla de 3 | J23: Marco Polo | K23: 1 | L23: 105 | M23: Domingo | N23: octubre | O23: ZS14018898 | P23: Capitulo 21
A24: Inmovilizar Paneles
A25: Estilos de Moneda
A26: FUNCIONES
A27: SUMA
A28: PROMEDIO
A29: MAX
A30: MIN
A31: SI
A32: CONTAR.SI
A33: Ordenar
A34: Filtrar
A35: GRAFOS
A36: Tipos de Graficos
A37: Partes de un grafico
A38: MACROS
A39: Crear macros

Sheet Metodos M&F SUMA
A1: EMPRESA S.A DE C.V.
A2: MATRICULA | B2: ALUMNO | C2: ESPAÑOL | D2: MATEMATICAS | E2: CONTABILIDAD | F2: SUMA TOTAL DE CALIFICACIONES
A3: ZS14018803 | B3: VILLEGAS ROTONDA | C3: 10 | D3: 8 | E3: 5 | F3: =C3+D3+E3 -> 23
A4: ZS14018810 | B4: DULCE | C4: 10 | D4: 7 | E4: 5 | F4: =C4+D4+E4 -> 22
A5: ZS14018817 | B5: BLANCA ELI | C5: 3 | D5: 4 | E5: 6 | F5: =C5+D5+E5 -> 13
A6: ZS14018824 | B6: NORA | C6: 6 | D6: 3 | E6: 7 | F6: =SUM(C6:E6) -> 16
A7: ZS14018831 | B7: SADAI | C7: 8 | D7: 8 | E7: 10 | F7: =SUM(C7:E7) -> 26
A8: ZS14018838 | B8: MANZO | C8: 5 | D8: 9 | E8: 5 | F8: 19
A9: ZS14018845 | B9: SELENE | C9: 7 | D9: 7 | E9: 6 | F9: 20
A10: ZS14018852 | B10: ABRAHAM | C10: 3 | D10: 10 | E10: 3 | F10: 16
A11: ZS14018859 | B11: LUPE | C11: 4 | D11: 7 | E11: 7 | F11: 18
A12: ZS14018866 | B12: GUSTAVO | C12: 5 | D12: 6 | E12: 8 | F12: 19
B13: TOTAL | C13: =SUM(C3:C12) -> 61 | D13: =D3+D4+D5+D6+D7+D8+D9+D10+D11+D12 -> 69 | E13: =SUM(E3:E12) -> 62
B30: AUTOFORMATO
B31: ALUMNO

Sheet PROMEDIO, MAX, MIN, SI
A1: Valores | C1: Acciones
A2: 3 | C2: =IF(A2=1,"A",IF(A2=2,"B",IF(A2=3,"C"))) -> C
A3: 2 | C3: =IF(A3=1,"A",IF(A3=2,"B",IF(A3=3,"C"))) -> B
A4: 1 | C4: =IF(A4=1,"A",IF(A4=2,"B",IF(A4=3,"C"))) -> A
A5: 3 | C5: =IF(A5=1,"A",IF(A5=2,"B",IF(A5=3,"C"))) -> C
A6: 1 | C6: =IF(A6=1,"A",IF(A6=2,"B",IF(A6=3,"C"))) -> A
A17: Matricula | B17: No. | C17: Alumno | D17: Español | E17: Matematicas | F17: Biologia | G17: Civismo | H17: Quimica | I17: Promedio | J17: Calif Alta | K17: Calif Baja | L17: Total de Beca | M17: Status
A18: BM09020122 | B18: 23 | C18: VILLEGAS-SILVA NAYELY | D18: 10 | E18: 9 | F18: 8.5 | G18: 10 | H18: 7 | I18: =AVERAGE(D18:H18) -> 8.9 | J18: =MAX(D18:H18) -> 10 | K18: =MIN(D18:H18) -> 7 | L18: =IF(I18>=8.1,"$5000","$0") -> $5000 | M18: =IF(L18>="$5000","Becado","Sin beca") -> Becado
A19: BM09020121 | B19: 22 | C19: VILLEGAS-ROTONDA ANALY | D19: 9 | E19: 10 | F19: 7 | G19: 10 | H19: 7 | I19: 8.6 | J19: 10 | K19: 7 | L19: $5000 | M19: Becado
A20: BM09020120 | B20: 21 | C20: VELIZ-CASTAÑEDA MIRNA AZUCENA | D20: 7 | E20: 8.5 | F20: 6 | G20: 7 | H20: 5 | I20: 6.7 | J20: 8.5 | K20: 5 | L20: $0 | M20: Sin beca
A21: BM09020119 | B21: 20 | C21: VAZQUEZ-DIAZ MARIA DE LA LUZ | D21: 10 | E21: 7 | F21: 8 | G21: 10 | H21: 10 | I21: 9 | J21: 10 | K21: 7 | L21: $5000 | M21: Becado
A22: BM09020118 | B22: 19 | C22: ULLOA-TORALBA JORGE ARTURO | D22: 5 | E22: 6 | F22: 9 | G22: 8 | H22: 10 | I22: 7.6 | J22: 10 | K22: 5 | L22: $0 | M22: Sin beca
A23: BM09020117 | B23: 18 | C23: TECZON-ANELL ROSARIO | D23: 2 | E23: 5 | F23: 6 | G23: 7 | H23: 7 | I23: 5.4 | J23: 7 | K23: 2 | L23: $0 | M23: Sin beca
A24: BM09020116 | B24: 17 | C24: SOLIS-CARVALLO ANDRES IVAN | D24: 10 | E24: 10 | F24: 6 | G24: 7 | H24: 10 | I24: 8.6 | J24: 10 | K24: 6 | L24: $5000 | M24: Becado
A25: BM09020115 | B25: 16 | C25: SERVIN-GARCIA FRIDA CITLALLI | D25: 9 | E25: 9 | F25: 9 | G25: 7 | H25: 8 | I25: 8.4 | J25: 9 | K25: 7 | L25: $5000 | M25: Becado
A26: BM09020114 | B26: 15 | C26: SANCHEZ-COVARRUBIAS IVAN ANTONIO | D26: 7 | E26: 8 | F26: 5 | G26: 6 | H26: 10 | I26: 7.2 | J26: 10 | K26: 5 | L26: $0 | M26: Sin beca
A27: BM09020113 | B27: 14 | C27: RUEDA-CHAVEZ SANDRA LARISSA | D27: 10 | E27: 10 | F27: 5 | G27: 8 | H27: 10 | I27: 8.6 | J27: 10 | K27: 5 | L27: $5000 | M27: Becado
A28: BM09020112 | B28: 13 | C28: ROJAS-ACOSTA NORA ALEJANDRA | D28: 5 | E28: 7 | F28: 3 | G28: 9 | H28: 8.5 | I28: 6.5 | J28: 9 | K28: 3 | L28: $0 | M28: Sin beca
A29: BM09020111 | B29: 12 | C29: REYES-ROMERO LILIANA JAZMIN | D29: 10 | E29: 7 | F29: 2 | G29: 6 | H29: 7 | I29: 6.4 | J29: 10 | K29: 2 | L29: $0 | M29: Sin beca
A30: BM09020110 | B30: 11 | C30: RAYA-PAPAYANOPULOS ALEJANDRA VIANE Y | D30: 8.5 | E30: 7 | F30: 10 | G30: 9 | H30: 6 | I30: 8.1 | J30: 10 | K30: 6 | L30: $5000 | M30: Becado
A31: BM09020109 | B31: 10 | C31: RAMIREZ-MAR IVON | D31: 7 | E31: 7 | F31: 9 | G31: 5 | H31: 7 | I31: 7 | J31: 9 | K31: 5 | L31: $0 | M31: Sin beca
A32: BM09020108 | B32: 9 | C32: PRIETO-BRITO LESLIE ANAID | D32: 6 | E32: 4 | F32: 7 | G32: 5 | H32: 6 | I32: 5.6 | J32: 7 | K32: 4 | L32: $0 | M32: Sin beca
A33: BM09020107 | B33: 8 | C33: PEREZ-CANO LUZ JACQUELINE | D33: 8 | E33: 8 | F33: 10 | G33: 3 | H33: 8 | I33: 7.4 | J33: 10 | K33: 3 | L33: $0 | M33: Sin beca
A34: BM09020106 | B34: 7 | C34: PALACIOS-CISNEROS FERNANDA YERALDE | D34: 9 | E34: 9 | F34: 5 | G34: 7.5 | H34: 9 | I34: 7.9 | J34: 9 | K34: 5 | L34: $0 | M34: Sin beca
A35: BM09020123 | B35: 24 | C35: MANZO-MARTINEZ GILBERTO AGUSTI N | D35: 2 | E35: 9 | F35: 10 | G35: 5 | H35: 6 | I35: 6.4 | J35: 10 | K35: 2 | L35: $0 | M35: Sin beca
A36: BM09020105 | B36: 6 | C36: FERNANDEZ-FERNANDEZ OYUKI SITLALY | D36: 5 | E36: 10 | F36: 5 | G36: 6 | H36: 2 | I36: 5.6 | J36: 10 | K36: 2 | L36: $0 | M36: Sin beca
A37: BM09020104 | B37: 5 | C37: DOMINGUEZ-BAUTISTA JORGE ABRAHAM | D37: 10 | E37: 8.5 | F37: 10 | G37: 9 | H37: 10 | I37: 9.5 | J37: 10 | K37: 8.5 | L37: $5000 | M37: Becado
A38: BM09020103 | B38: 4 | C38: CORPUS-GARCIA MARIELA | D38: 9 | E38: 7 | F38: 10 | G38: 5 | H38: 9 | I38: 8 | J38: 10 | K38: 5 | L38: $0 | M38: Sin beca
A39: BM09020102 | B39: 3 | C39: CARRASCO-RAMOS ALBERTO | D39: 8 | E39: 6 | F39: 7 | G39: 5 | H39: 7 | I39: 6.6 | J39: 8 | K39: 5 | L39: $0 | M39: Sin beca
A40: BM09020101 | B40: 2 | C40: CARDEÑA-TORAL JESSICA JOSELYN | D40: 10 | E40: 8 | F40: 10 | G40: 3 | H40: 10 | I40: =SUM(D40:H40)/5 -> 8.2 | J40: 10 | K40: 3 | L40: $5000 | M40: Becado
A41: BM09020100 | B41: 1 | C41: CARACAS-MARTINEZ GUADALUPE | D41: 7 | E41: 9 | F41: 8 | G41: 7.5 | H41: 5 | I41: =(D41+E41+F41+H41+G41)/5 -> 7.3 | J41: 9 | K41: 5 | L41: $0 | M41: Sin beca

Sheet Ref.Rel & Abs Contar.SI
B1: NOMBRE | C1: GENERO | D1: FORMATO | E1: PRECIO FABRICA | F1: PRECIO AL PUBLICO | G1: DIF. PRECIO PUB - PRECIO FAB | H1: PRECIO PUB * IVA | J1: IVA= | K1: 0.16
A2: 1 | B2: GLOBAL PAUL VAN DYLC | C2: DANCE | D2: DVD | E2: 22 | F2: 25 | G2: =F2-E2 -> 3 | H2: =F2*K$1 -> 4
A3: 2 | B3: RICARDO ARJONA | C3: POP | D3: DVD | E3: 20 | F3: 30 | G3: =F3-E3 -> 10 | H3: =F3*K$1 -> 4.8
A4: 3 | B4: ALEJANDRO SANZ | C4: POP | D4: DVD | E4: 80 | F4: 80 | G4: 0 | H4: 12.8
A5: 4 | B5: RICKY MARTIN | C5: POP | D5: DVD | E5: 43 | F5: 45 | G5: 2 | H5: 7.2
A6: 5 | B6: SHAKIRA | C6: POP | D6: DVD | E6: 20 | F6: 40 | G6: 20 | H6: 6.4
A7: 6 | B7: MANA | C7: MTV | D7: DVD | E7: 20 | F7: 30 | G7: 10 | H7: 4.8
A8: 7 | B8: GRANDES ROCKEROS | C8: ROCK EN ESPAÑOL | D8: DVD | E8: 80 | F8: 80 | G8: 0 | H8: 12.8
A9: 8 | B9: HEROES DEL SILENCIO | C9: ROCK EN ESPAÑOL | D9: DVD | E9: 20 | F9: 20 | G9: 0 | H9: 3.2
A10: 9 | B10: MUSIC CLASICAS EN INGLES | C10: INGLES | D10: mp3 | E10: 20 | F10: 20 | G10: 0 | H10: 3.2
A11: 10 | B11: DE CAIFANES A JAGUARES | C11: ROCK EN ESPAÑOL | D11: DVD | E11: 80 | F11: 80 | G11: 0 | H11: 12.8
A12: 11 | B12: HECTORE EL FATHER | C12: REGGAETON | D12: DVD | E12: 20 | F12: 20 | G12: 0 | H12: 3.2
A13: 12 | B13: GUAYACAN | C13: SALSA | D13: DVD | E13: 20 | F13: 25 | G13: 5 | H13: 4
A14: 13 | B14: MADONNA VIDEOGRAFIA | C14: POP | D14: DVD | E14: 80 | F14: 80 | G14: 0 | H14: 12.8
A15: 14 | B15: MADONNA VS MICHAEL JACKSON | C15: POP | D15: DVD | E15: 20 | F15: 20 | G15: 0 | H15: 3.2
A16: 15 | B16: 39 EXITOS ROMANTICOS EN INGLES | C16: INGLES | D16: DVD | E16: 20 | F16: 25 | G16: 5 | H16: 4
A17: 16 | B17: ADOLESCENTES | C17: SALSA | D17: DVD | E17: 88 | F17: 90 | G17: 2 | H17: 14.4
A18: 17 | B18: MAGO DE OZ | C18: ROCK | D18: DVD | E18: 20 | F18: 20 | G18: 0 | H18: 3.2
A19: 18 | B19: SODA ESTEREO | C19: ROCK EN ESPAÑOL | D19: DVD | E19: 20 | F19: 20 | G19: 0 | H19: 3.2
A20: 19 | B20: FRANKIE RUIZ | C20: SALSA | D20: DVD | E20: 80 | F20: 80 | G20: 0 | H20: 12.8
A21: 20 | B21: U2 | C21: ROCK | D21: DVD | E21: 20 | F21: 20 | G21: 0 | H21: 3.2
A22: 21 | B22: WOODSTOCK 99 | C22: ROCK | D22: DVD | E22: 20 | F22: 20 | G22: 0 | H22: 3.2
A23: 22 | B23: MICHAEL JACKSON GHOST Y CAPITAN EO | C23: POP | D23: DVD | E23: 20 | F23: 20 | G23: 0 | H23: 3.2
A24: 23 | B24: TITO PUENTE | C24: SALSA | D24: DVD | E24: 67 | F24: 80 | G24: 13 | H24: 12.8
A25: 24 | B25: KPAZ | C25: DANCE | D25: DVD | E25: 20 | F25: 20 | G25: 0 | H25: 3.2
A26: 25 | B26: SHAKIRA TOUR 2007 FIJACION ORAL | C26: POP | D26: DVD | E26: 80 | F26: 80 | G26: 0 | H26: 12.8
A27: 26 | B27: LAS MEJORES BALADAS DE HOY | C27: BALADAS | D27: DVD | E27: 20 | F27: 25 | G27: 5 | H27: 4
A28: 27 | B28: ALEJANDRA GUZMAN EXITOS | C28: POP | D28: DVD | E28: 20 | F28: 20 | G28: 0 | H28: 3.2
A29: 28 | B29: HOMBRES G | C29: POP | D29: DVD | E29: 20 | F29: 25 | G29: 5 | H29: 4
A30: 29 | B30: REYLI | C30: POP | D30: DVD | E30: 20 | F30: 20 | G30: 0 | H30: 3.2
A31: 30 | B31: LA LEY | C31: ROCK | D31: DVD | E31: 54 | F31: 54 | G31: 0 | H31: 8.64
A32: 31 | B32: WINSIN Y YANDEL | C32: REGGAETON | D32: DVD | E32: 80 | F32: 80 | G32: 0 | H32: 12.8
A33: 32 | B33: CRISTINA AGUILERA EN VIVO 2007 | C33: POP | D33: DVD | E33: 20 | F33: 20 | G33: 0 | H33: 3.2
A34: 33 | B34: michael jackson live in bucarest | C34: POP | D34: DVD | E34: 20 | F34: 20 | G34: 0 | H34: 3.2
A35: 34 | B35: papitour -miguel bose | C35: POP | D35: DVD | E35: 20 | F35: 25 | G35: 5 | H35: 4
A36: 35 | B36: YURI | C36: POP | D36: DVD | E36: 20 | F36: 20 | G36: 0 | H36: 3.2
A37: 36 | B37: GILBERTO SANTA ROSA | C37: SALSA | D37: DVD | E37: 20 | F37: 20 | G37: 0 | H37: 3.2
A38: 37 | B38: HECTOR EN FATHER EN VIVO | C38: REGGAETON | D38: DVD | E38: 20 | F38: 25 | G38: 5 | H38: 4
A39: 38 | B39: WISIN & YANDEL EN VIVO | C39: REGGAETON | D39: DVD | E39: 20 | F39: 20 | G39: 0 | H39: 3.2
A40: 39 | B40: ZION -WELCOME A MI WORD | C40: CONCIERTO EN VIVO | D40: DVD | E40: 45 | F40: 45 | G40: 0 | H40: 7.2
A41: 40 | B41: EV ENANITOS VERDES EN VIVO | C41: ROCK EN ESPAÑOL | D41: DVD | E41: 20 | F41: 20 | G41: 0 | H41: 3.2
A42: 41 | B42: LA LEY UNPLUGGED | C42: ROCK EN ESPAÑOL | D42: DVD | E42: 20 | F42: 20 | G42: 0 | H42: 3.2
A43: 42 | B43: MAGO DE OZ EN LAS VENTAS | C43: ROCK | D43: DVD | E43: 23 | F43: 25 | G43: 2 | H43: 4
A44: 43 | B44: MAGO DE OZ EN CONCIERTO | C44: ROCK | D44: DVD | E44: 80 | F44: 80 | G44: 0 | H44: 12.8
A45: 44 | B45: SODA ESTEREO ULTIMO CONCIERTO | C45: ROCK EN ESPAÑOL | D45: DVD | E45: 20 | F45: 20 | G45: 0 | H45: 3.2
A46: 45 | B46: SHAKIRA UNPLUGGED | C46: POP | D46: DVD | E46: 20 | F46: 25 | G46: 5 | H46: 4
A47: 46 | B47: MADONNA CIAO ITALIA | C47: POP | D47: DVD | E47: 20 | F47: 20 | G47: 0 | H47: 3.2
A48: 47 | B48: MADONNA EN VIVO 1990 | C48: POP | D48: DVD | E48: 20 | F48: 25 | G48: 5 | H48: 4
A49: 48 | B49: QUIET RIOT LIVE IN JAPON | C49: ROCK | D49: DVD | E49: 20 | F49: 20 | G49: 0 | H49: 3.2
A50: 49 | B50: KUMBIA KINGS LIVE | C50: CUMBIA | D50: DVD | E50: 20 | F50: 20 | G50: 0 | H50: 3.2
A51: 50 | B51: MANA UNPLUGGED | C51: POP | D51: DVD | E51: 43 | F51: 43 | G51: 0 | H51: 6.88
A52: 51 | B52: KALIMBA TRIBUTO A LOS GRNADES | C52: BALADAS | D52: DVD | E52: 70 | F52: 70 | G52: 0 | H52: 11.2
A53: 52 | B53: JOSE JOSE EXITOS 1 | C53: BALADAS | D53: DVD | E53: 20 | F53: 20 | G53: 0 | H53: 3.2
A54: 53 | B54: JOSE JOSE EXITOS 3 | C54: BALADAS | D54: DVD | E54: 80 | F54: 80 | G54: 0 | H54: 12.8
A55: 54 | B55: ROCIO DURCAL | C55: BALADAS | D55: DVD | E55: 20 | F55: 20 | G55: 0 | H55: 3.2
A56: 55 | B56: RICKY MARTIN UNPLUGGED | C56: POP | D56: DVD | E56: 20 | F56: 20 | G56: 0 | H56: 3.2
A57: 56 | B57: FRANCO DE VITA | C57: BALADAS | D57: DVD | E57: 65 | F57: 65 | G57: 0 | H57: 10.4
A58: 57 | B58: MAELO RUIZ | C58: SALSA | D58: DVD | E58: 20 | F58: 20 | G58: 0 | H58: 3.2
A59: 58 | B59: HECTOR LAVOE EN VIVO | C59: SALSA | D59: DVD | E59: 5 | F59: 5 | G59: 0 | H59: 0.8
A60: 59 | B60: RUBEN BLADES EN VIVO | C60: SALSA | D60: DVD | E60: 20 | F60: 20 | G60: 0 | H60: 3.2
A61: 60 | B61: REGGAETON | C61: 150 EXITOS | D61: MP3 | E61: 15 | F61: 15 | G61: 0 | H61: 2.4
A62: 61 | B62: REGGAETON VOL 2 | C62: 150 EXITOS | D62: MP3 | E62: 15 | F62: 15 | G62: 0 | H62: 2.4
A63: 62 | B63: REGGAETON VOL 3 | C63: 150 EXITOS | D63: MP3 | E63: 5 | F63: 5 | G63: 0 | H63: 0.8
A64: 63 | B64: REGGAETON VOL 4 | C64: 150 EXITOS | D64: MP3 | E64: 15 | F64: 15 | G64: 0 | H64: 2.4
A65: 64 | B65: REGGAETON VOL 5 | C65: 150 EXITOS | D65: MP3 | E65: 80 | F65: 80 | G65: 0 | H65: 12.8
A66: 65 | B66: luis miguel | C66: TODOS LOS ROMANCE | D66: MP3 | E66: 15 | F66: 15 | G66: 0 | H66: 2.4
A67: 66 | B67: temas romanticosa en español | C67: 100 EXITOS | D67: MP3 | E67: 15 | F67: 15 | G67: =F67-E67 -> 0 | H67: =F67*K$1 -> 2.4
A68: 67 | B68: temas romanticosa en español VOL 2 | C68: 100 EXITOS | D68: MP3 | E68: 15 | F68: 15 | G68: 0 | H68: 2.4
A69: 68 | B69: sin bandera todos sus exitos | C69: MP3 | D69: MP3 | E69: 15 | F69: 15 | G69: 0 | H69: 2.4
B73: Total de DVD's | C73: =COUNTIF(D2:D69,"DVD") -> 58
B74: Total de MP3's | C74: =COUNTIF(D2:D69,"MP3") -> 10

Sheet Porcentajes
C4: 0.3 | F4: 0.7 | G4: 1
B5: Alumno | C5: Parcial 1 | D5: Parcial 2 | E5: Parcial 3 | F5: Examen Final | G5: Promedio Final
B6: CARACAS-MARTINEZ GUADALUPE | C6: 7 | D6: 9 | E6: 8 | F6: 7 | G6: =(C6+D6+E6)/3*$C$4+(F6)*$F$4 -> 7.3
B7: CARDEÑA-TORAL JESSICA JOSELYN | C7: 5 | D7: 8 | E7: 5 | F7: 5 | G7: =(C7+D7+E7)/3*$C$4+(F7)*$F$4 -> 5.3
B8: CARRASCO-RAMOS ALBERTO | C8: 8 | D8: 6 | E8: 7 | F8: 5 | G8: 5.6
B9: CORPUS-GARCIA MARIELA | C9: 9 | D9: 7 | E9: 5 | F9: 8 | G9: 7.7
B10: DOMINGUEZ-BAUTISTA JORGE ABRAHAM | C10: 10 | D10: 5 | E10: 10 | F10: 9 | G10: 8.8

Sheet Rangos
A4: · Venta total por trimestre | D4: * Venta Maxima por vendedor
A5: · Venta total por vendedor | D5: * Venta Minima por vendedor
A6: · Promedio de venta por vendedor | D6: * Venta Maxima por trimestre
A7: · Promedio de venta por trimestre | D7: * Venta Minima por trimestre
A8: Rellene todas las celdas con las funciones correspondientes.
B9: Vendedor | C9: Trimestre1 | D9: Trimestre2 | E9: Trimestre3 | F9: Vtas.Tot.Vendedor | G9: Prom.Vtas.Vendedor | H9: Vta.Max.Vend. | I9: Vta.Min.Vend.
B10: Hugo | C10: 1340 | D10: 865 | E10: 5464 | F10: =SUM(C10:E10) -> 7669 | G10: =AVERAGE(C10:E10) -> 2556.333333 | H10: =MAX(C10:E10) -> 5464 | I10: =MIN(C10:E10) -> 865
B11: Paco | C11: 4234 | D11: 35 | E11: 775 | F11: =SUM(C11:E11) -> 5044 | G11: =AVERAGE(C11:E11) -> 1681.333333 | H11: =MAX(C11:E11) -> 4234 | I11: =MIN(C11:E11) -> 35
B12: Luis | C12: 6560 | D12: 756 | E12: 54 | F12: 7370 | G12: 2456.666667 | H12: 6560 | I12: 54
B13: Carlos | C13: 3423 | D13: 1546 | E13: 765 | F13: 5734 | G13: 1911.333333 | H13: 3423 | I13: 765
A16: Vtas.Tot.Trim. | C16: =SUM(Trimestre1) -> 15557 | D16: =SUM(Trimestre2) -> 3202 | E16: =SUM(Trimestre3) -> 7058
A17: Prom. Vtas.Trim. | C17: =AVERAGE(Trimestre1) -> 3889.25 | D17: =AVERAGE(Trimestre2) -> 800.5 | E17: =AVERAGE(Trimestre3) -> 1764.5
A18: Vta.Max.Trim. | C18: =MAX(Trimestre1) -> 6560 | D18: =MAX(Trimestre2) -> 1546 | E18: =MAX(Trimestre3) -> 5464
A19: Vta.Min.Trim. | C19: =MIN(Trimestre1) -> 1340 | D19: =MIN(Trimestre2) -> 35 | E19: =MIN(Trimestre3) -> 54

Sheet Grafos
C1: VENTAS MENSUALES (EN MILES)
A3: MES | B3: PRODUCTO 1 | C3: PRODUCTO 2 | D3: TOTAL VENTAS
A4: ENERO | B4: 100 | C4: 40 | D4: =SUM(B4:C4) -> 140
A5: FEBRERO | B5: 150 | C5: 25 | D5: 175
A6: MARZO | B6: 240 | C6: 41 | D6: 281
A7: ABRIL | B7: 95 | C7: 52 | D7: 147
A8: MAYO | B8: 75 | C8: 167 | D8: 242
A9: JUNIO | B9: 175 | C9: 286 | D9: 461

Sheet Macros
M7: Pesos Mexicanos | N7: Importe en letra
M8: =RANDBETWEEN(8,8000) -> 7078 | N8: =PesosMX(M8) -> SON: ( SIETE MIL SETENTA Y OCHO PESOS 00/100 m.n.)
M9: =RANDBETWEEN(8,8000) -> 3724 | N9: =PesosMX(M9) -> SON: ( TRES MIL SETECIENTOS VEINTICUATRO PESOS 00/100 m.n.)
M10: =RANDBETWEEN(8,8000) -> 7827 | N10: =PesosMX(M10) -> SON: ( SIETE MIL OCHOCIENTOS VEINTISIETE PESOS 00/100 m.n.)
M11: =RANDBETWEEN(8,8000) -> 5408 | N11: =PesosMX(M11) -> SON: ( CINCO MIL CUATROCIENTOS OCHO PESOS 00/100 m.n.)
M12: =RANDBETWEEN(8,8000) -> 3695 | N12: =PesosMX(M12) -> SON: ( TRES MIL SEISCIENTOS NOVENTA Y CINCO PESOS 00/100 m.n.)
M13: =RANDBETWEEN(8,8000) -> 2246 | N13: =PesosMX(M13) -> SON: ( DOS MIL DOSCIENTOS CUARENTA Y SEIS PESOS 00/100 m.n.)
M14: =RANDBETWEEN(8,8000) -> 2495 | N14: =PesosMX(M14) -> SON: ( DOS MIL CUATROCIENTOS NOVENTA Y CINCO PESOS 00/100 m.n.)
M15: =RANDBETWEEN(8,8000) -> 4356 | N15: =PesosMX(M15) -> SON: ( CUATRO MIL TRESCIENTOS CINCUENTA Y SEIS PESOS 00/100 m.n.)
M16: =RANDBETWEEN(8,8000) -> 2861 | N16: =PesosMX(M16) -> SON: ( DOS MIL OCHOCIENTOS SESENTA Y UN PESOS 00/100 m.n.)
M17: =RANDBETWEEN(8,8000) -> 5684 | N17: =PesosMX(M17) -> SON: ( CINCO MIL SEISCIENTOS OCHENTA Y CUATRO PESOS 00/100 m.n.)
M18: =RANDBETWEEN(8,8000) -> 2392 | N18: =PesosMX(M18) -> SON: ( DOS MIL TRESCIENTOS NOVENTA Y DOS PESOS 00/100 m.n.)
M19: =RANDBETWEEN(8,8000) -> 5079 | N19: =PesosMX(M19) -> SON: ( CINCO MIL SETENTA Y NUEVE PESOS 00/100 m.n.)
M20: =RANDBETWEEN(8,8000) -> 6160 | N20: =PesosMX(M20) -> SON: ( SEIS MIL CIENTO SESENTA PESOS 00/100 m.n.)
M21: =RANDBETWEEN(8,8000) -> 6738 | N21: =PesosMX(M21) -> SON: ( SEIS MIL SETECIENTOS TREINTA Y OCHO PESOS 00/100 m.n.)
M22: =RANDBETWEEN(8,8000) -> 1556 | N22: =PesosMX(M22) -> SON: ( UN MIL QUINIENTOS CINCUENTA Y SEIS PESOS 00/100 m.n.)
M23: =RANDBETWEEN(8,8000) -> 3320 | N23: =PesosMX(M23) -> SON: ( TRES MIL TRESCIENTOS VEINTE PESOS 00/100 m.n.)
M24: =RANDBETWEEN(8,8000) -> 5066 | N24: =PesosMX(M24) -> SON: ( CINCO MIL SESENTA Y SEIS PESOS 00/100 m.n.)
M25: =RANDBETWEEN(8,8000) -> 2471 | N25: =PesosMX(M25) -> SON: ( DOS MIL CUATROCIENTOS SETENTA Y UN PESOS 00/100 m.n.)
M26: =RANDBETWEEN(8,8000) -> 2314 | N26: =PesosMX(M26) -> SON: ( DOS MIL TRESCIENTOS CATORCE PESOS 00/100 m.n.)
M27: =RANDBETWEEN(8,8000) -> 7232 | N27: =PesosMX(M27) -> SON: ( SIETE MIL DOSCIENTOS TREINTA Y DOS PESOS 00/100 m.n.)
M28: =RANDBETWEEN(8,8000) -> 4630 | N28: =PesosMX(M28) -> SON: ( CUATRO MIL SEISCIENTOS TREINTA PESOS 00/100 m.n.)
M29: =RANDBETWEEN(8,8000) -> 282 | N29: =PesosMX(M29) -> SON: ( DOSCIENTOS OCHENTA Y DOS PESOS 00/100 m.n.)
M30: =RANDBETWEEN(8,8000) -> 6404 | N30: =PesosMX(M30) -> SON: ( SEIS MIL CUATROCIENTOS CUATRO PESOS 00/100 m.n.)
